fUSD/lending_fUSD_20250106
["ID","MTS","AMOUNT","RATE_DAILY","PERIOD"]
[347865848,1736171432703,-500.0,0.00010221,2]
[347865849,1736171432712,-500.0,0.00010221,2]
[347865850,1736171432722,-500.0,0.00010221,2]
[347865851,1736171432732,-500.0,0.00010221,2]
[347865852,1736171432741,-500.0,0.00010221,2]
[347865853,1736171432750,-536.69670696,0.00010221,2]
[347865854,1736171432760,-500.0,0.00010221,2]
[347865855,1736171432769,-500.0,0.00010221,2]
[347865856,1736171432779,-500.0,0.00010221,2]
[347865857,1736171432791,-530.09,0.00010221,2]
[347865858,1736171432801,-500.0,0.00010221,2]
[347865859,1736171432810,-1267.13,0.00010221,2]
[347865860,1736171432820,-2358.59,0.00010221,2]
[347865861,1736171432829,-1174.46,0.00010221,2]
[347865862,1736171432838,-524.98,0.00010221,2]
[347865863,1736171432848,-642.28,0.00010297,2]
[347865864,1736171432857,-500.0,0.00010297,2]
[347865865,1736171432866,-610.25,0.00010297,2]
[347865866,1736171432876,-500.0,0.00010297,2]
[347865867,1736171432885,-500.0,0.00010297,2]
[347865868,1736171432894,-500.0,0.00010297,2]
[347865869,1736171432903,-1099.24,0.00010297,2]
[347865870,1736171432913,-989.72,0.00010297,2]
[347865871,1736171432922,-1681.61,0.00010297,2]
[347865872,1736171432932,-3476.98,0.00010297,2]
[347865873,1736171432941,-327.82,0.00010297,2]
[347865874,1736171432950,-4573.22,0.00010297,2]
[347865875,1736171432959,-500.0,0.00010297,2]
[347865876,1736171432968,-500.0,0.00010297,2]
[347865877,1736171432977,-500.0,0.00010297,2]
[347865878,1736171432987,-2289.15,0.00010297,2]
[347865879,1736171432996,-500.0,0.00010297,2]
[347865880,1736171433005,-661.27,0.00010297,2]
[347865881,1736171433015,-568.15,0.00010297,2]
[347865882,1736171433025,-500.0,0.00010297,2]
[347865883,1736171433036,-228.82996754,0.00010314,2]
[347865884,1736171433046,-228.82996754,0.00010417,2]
[347865885,1736171433055,-475.42,0.00010463,2]
[347865886,1736171433065,-810.25,0.0001047,2]
[347865887,1736171433074,-809.95,0.0001047,2]
[347865888,1736171433084,-1690.91,0.0001047,2]
[347865889,1736171433094,-275.7953,0.00010471,2]
[347865890,1736171433103,-500.0,0.00010471,2]
[347865891,1736171433112,-500.0,0.00010471,2]
[347865892,1736171433121,-520.43,0.00010471,2]
[347865893,1736171433131,-528.3343696,0.00010471,2]
[347865894,1736171433140,-555.8,0.00010471,2]
[347865895,1736171433150,-500.0,0.00010471,2]
[347865896,1736171433159,-500.0,0.00010471,2]
[347865897,1736171433168,-500.0,0.00010471,2]
[347865898,1736171433178,-500.0,0.00010471,2]
[347865899,1736171433187,-500.0,0.00010471,2]
[347865900,1736171433196,-500.0,0.00010495,2]
[347865901,1736171433205,-500.0,0.00010495,2]
[347865902,1736171433215,-500.0,0.00010495,2]
[347865903,1736171433225,-500.0,0.00010495,2]
[347865904,1736171433235,-500.0,0.00010495,2]
[347865905,1736171433245,-500.0,0.00010495,2]
[347865906,1736171433255,-500.0,0.00010495,2]
[347865907,1736171433264,-500.0,0.00010495,2]
[347865908,1736171433274,-500.0,0.00010495,2]
[347865909,1736171433285,-500.0,0.00010495,2]
[347865910,1736171433294,-500.0,0.00010495,2]
[347865911,1736171433303,-500.0,0.00010495,2]
[347865912,1736171433314,-500.0,0.00010495,2]
[347865913,1736171433324,-500.0,0.00010495,2]
[347865914,1736171433334,-500.0,0.00010495,2]
[347865915,1736171433343,-500.0,0.00010495,2]
[347865916,1736171433353,-500.0,0.00010495,2]
[347865917,1736171433362,-500.0,0.00010495,2]
[347865918,1736171433372,-500.0,0.00010495,2]
[347865919,1736171433381,-1267.13,0.00010495,2]
[347865920,1736171433391,-2358.59,0.00010495,2]
[347865921,1736171433401,-1174.46,0.00010495,2]
[347865922,1736171433410,-524.98,0.00010495,2]
[347865923,1736171433420,-228.82996754,0.00010521,2]
[347865924,1736171433430,-642.28,0.00010571,2]
[347865925,1736171433439,-500.0,0.00010571,2]
[347865926,1736171433449,-610.25,0.00010571,2]
[347865927,1736171433459,-500.0,0.00010571,2]
[347865928,1736171433468,-500.0,0.00010571,2]
[347865929,1736171433478,-500.0,0.00010571,2]
[347865930,1736171433488,-1099.24,0.00010571,2]
[347865931,1736171433498,-989.72,0.00010571,2]
[347865932,1736171433507,-1681.61,0.00010571,2]
[347865933,1736171433517,-4573.22,0.00010571,2]
[347865934,1736171433527,-500.0,0.00010571,2]
[347865935,1736171433538,-924.08,0.00010571,2]
[347865936,1736171433548,-500.0,0.00010571,2]
[347865937,1736171433558,-500.0,0.00010571,2]
[347865938,1736171433568,-2499.25,0.00010571,2]
[347865939,1736171433578,-2289.15,0.00010571,2]
[347865940,1736171433587,-1073.59,0.00010571,2]
[347865941,1736171433598,-500.0,0.00010571,2]
[347865942,1736171433610,-1548.06,0.00010571,2]
[347865943,1736171433620,-568.15,0.00010571,2]
[347865944,1736171433631,-1895.64,0.00010571,2]
[347865945,1736171433640,-500.0,0.00010571,2]
[347865946,1736171433650,-889.35,0.00010571,2]
[347865947,1736171433660,-990.93,0.00010571,2]
[347865948,1736171433669,-500.0,0.00010571,2]
[347865949,1736171433679,-602.58,0.00010571,2]
[347865950,1736171433691,-167.55,0.00010595,2]
[347865951,1736171433701,-228.82996754,0.00010624,2]
[347865952,1736171433711,-150.0,0.00010677,2]
[347865953,1736171433720,-150.0,0.00010677,2]
[347865954,1736171433729,-150.0,0.00010677,2]
[347865955,1736171433739,-437.72,0.00010712,2]
[347865956,1736171433748,-228.82996754,0.00010728,2]
[347865957,1736171433758,-810.25,0.00010744,2]
[347865958,1736171433768,-809.95,0.00010744,2]
[347865959,1736171433778,-1690.91,0.00010744,2]
[347865960,1736171433789,-1000.0,0.00010745,2]
[347865961,1736171433799,-500.0,0.00010745,2]
[347865962,1736171433809,-500.0,0.00010745,2]
[347865963,1736171433818,-520.43,0.00010745,2]
[347865964,1736171433827,-555.8,0.00010745,2]
[347865965,1736171433837,-435.8950328,0.00010745,2]
[347865966,1736171433847,-500.0,0.00010745,2]
[347865967,1736171433857,-200.0,0.00010746,2]
[347865968,1736171433866,-500.0,0.00010769,2]
[347865969,1736171433876,-500.89,0.00010769,2]
[347865970,1736171433885,-500.0,0.00010769,2]
[347865971,1736171433895,-500.0,0.00010769,2]
[347865972,1736171433904,-500.0,0.00010769,2]
[347865973,1736171433913,-500.0,0.00010769,2]
[347865974,1736171433922,-500.0,0.00010769,2]
[347865975,1736171433932,-167.15932991,0.00010769,2]
[347865976,1736171433941,-500.0,0.00010769,2]
[347865977,1736171433951,-639.65,0.00010769,2]
[347865978,1736171433960,-500.0,0.00010769,2]
[347865979,1736171433969,-610.87,0.00010769,2]
[347865980,1736171433979,-500.0,0.00010769,2]
[347865981,1736171433989,-492.99,0.00010769,2]
[347865982,1736171433998,-500.0,0.00010769,2]
[347865983,1736171434008,-500.0,0.00010769,2]
[347865984,1736171434017,-558.64,0.00010769,2]
[347865985,1736171434027,-500.0,0.00010769,2]
[347865986,1736171434037,-1267.13,0.00010769,2]
[347865987,1736171434047,-2358.59,0.00010769,2]
[347865988,1736171434059,-1174.46,0.00010769,2]
[347865989,1736171434068,-524.98,0.00010769,2]
[347865990,1736171434079,-437.72,0.00010822,2]
[347865991,1736171434088,-437.72,0.00010822,2]
[347865992,1736171434098,-437.72,0.00010822,2]
[347865993,1736171434107,-228.82996754,0.00010831,2]
[347865994,1736171434117,-1000.0,0.00010844,2]
[347865995,1736171434127,-500.0,0.00010844,2]
[347865996,1736171434136,-1010.97,0.00010844,2]
[347865997,1736171434146,-1058.17,0.00010844,2]
[347865998,1736171434155,-511.19,0.00010844,2]
[347865999,1736171434164,-500.0,0.00010844,2]
[347866000,1736171434174,-976.16,0.00010844,2]
[347866001,1736171434184,-500.0,0.00010844,2]
[347866002,1736171434194,-500.0,0.00010844,2]
[347866003,1736171434204,-275.61,0.00010844,2]
[347866004,1736171434213,-500.0,0.00010844,2]
[347866005,1736171434223,-500.0,0.00010844,2]
[347866006,1736171434233,-530.78,0.00010844,2]
[347866007,1736171434243,-642.28,0.00010845,2]
[347866008,1736171434252,-500.0,0.00010845,2]
[347866009,1736171434262,-610.25,0.00010845,2]
[347866010,1736171434271,-500.0,0.00010845,2]
[347866011,1736171434281,-500.0,0.00010845,2]
[347866012,1736171434292,-500.0,0.00010845,2]
[347866013,1736171434302,-1099.24,0.00010845,2]
[347866014,1736171434312,-989.72,0.00010845,2]
[347866015,1736171434321,-1681.61,0.00010845,2]
[347866016,1736171434331,-4573.22,0.00010845,2]
[347866017,1736171434340,-500.0,0.00010845,2]
[347866018,1736171434350,-924.08,0.00010845,2]
[347866019,1736171434359,-500.0,0.00010845,2]
[347866020,1736171434369,-500.0,0.00010845,2]
[347866021,1736171434379,-2499.25,0.00010845,2]
[347866022,1736171434388,-2289.15,0.00010845,2]
[347866023,1736171434398,-1073.59,0.00010845,2]
[347866024,1736171434407,-500.0,0.00010845,2]
[347866025,1736171434417,-1548.06,0.00010845,2]
[347866026,1736171434427,-568.15,0.00010845,2]
[347866027,1736171434436,-1895.64,0.00010845,2]
[347866028,1736171434445,-500.0,0.00010845,2]
[347866029,1736171434455,-889.35,0.00010845,2]
[347866030,1736171434465,-990.93,0.00010845,2]
[347866031,1736171434475,-500.0,0.00010845,2]
[347866032,1736171434485,-602.58,0.00010845,2]
[347866033,1736171434495,-5000.0,0.00010857,2]
[347866034,1736171434505,-436.5156,0.00010857,2]
[347866035,1736171434515,-150.0,0.00010877,2]
[347866036,1736171434526,-151.59989472,0.000109,2]
[347866037,1736171434539,-151.59989468,0.000109,2]
[347866038,1736171434548,-151.59989468,0.000109,2]
[347866039,1736171434559,-151.59989468,0.000109,2]
[347866040,1736171434569,-151.59989468,0.000109,2]
[347866041,1736171434579,-158.94184706,0.000109,2]
[347866042,1736171434588,-1100.0,0.000109,3]
[347866043,1736171434598,-228.82996754,0.00010934,2]
[347866044,1736171434608,-968.77961326,0.00010952,2]
[347866045,1736171434620,-532.17,0.00010955,2]
[347866046,1736171434630,-500.0,0.00010955,2]
[347866047,1736171434640,-500.0,0.00010955,2]
[347866048,1736171434651,-500.0,0.00010955,2]
[347866049,1736171434661,-500.0,0.00010955,2]
[347866050,1736171434670,-500.0,0.00010955,2]
[347866051,1736171434680,-500.0,0.00010955,2]
[347866052,1736171434690,-500.0,0.00010956,2]
[347866053,1736171434700,-504.49565339,0.00010956,2]
[347866054,1736171434709,-307.33462626,0.00010956,2]
[347866055,1736171434718,-500.0,0.00010956,2]
[347866056,1736171434728,-500.0,0.00010956,2]
[347866057,1736171434737,-500.0,0.00010956,2]
[347866058,1736171434746,-500.0,0.00010956,2]
[347866059,1736171434755,-509.19389303,0.00010956,2]
[347866060,1736171434765,-500.0,0.00010956,2]
[347866061,1736171434775,-500.0,0.00010956,2]
[347866062,1736171434785,-218.72029525,0.00010956,2]
[347866063,1736171434795,-500.0,0.00010956,2]
[347866064,1736171434804,-255.83370233,0.00010956,2]
[347866065,1736171434814,-500.0,0.00010956,2]
[347866066,1736171434823,-500.0,0.00010956,2]
[347866067,1736171434833,-713.64,0.00010956,2]
[347866068,1736171434842,-2093.42,0.00010956,2]
[347866069,1736171434851,-500.0,0.00010956,2]
[347866070,1736171434860,-500.0,0.00010956,2]
[347866071,1736171434870,-500.0,0.00010956,2]
[347866072,1736171434879,-500.0,0.00010956,2]
[347866073,1736171434889,-242.14448323,0.00010956,2]
[347866074,1736171434898,-500.0,0.00010956,2]
[347866075,1736171434907,-500.0,0.00010956,2]
[347866076,1736171434917,-500.0,0.00010956,2]
[347866077,1736171434926,-500.0,0.00010956,2]
[347866078,1736171434936,-500.0,0.00010956,2]
[347866079,1736171434946,-1084.23,0.00010956,2]
[347866080,1736171434955,-431.15598709,0.00010956,2]
[347866081,1736171434965,-500.0,0.00010956,2]
[347866082,1736171434974,-1433.13,0.00010956,2]
[347866083,1736171434983,-500.0,0.00010956,2]
[347866084,1736171434993,-500.0,0.00010956,2]
[347866085,1736171435002,-500.0,0.00010956,2]
[347866086,1736171435012,-500.0,0.00010956,2]
[347866087,1736171435021,-750.98,0.00010956,2]
[347866088,1736171435031,-606.68,0.00010956,2]
[347866089,1736171435041,-500.0,0.00010956,2]
[347866090,1736171435051,-506.65053209,0.00010956,2]
[347866091,1736171435060,-491.69510513,0.00010956,2]
[347866092,1736171435069,-500.0,0.00010956,2]
[347866093,1736171435079,-500.0,0.00010956,2]
[347866094,1736171435089,-1706.94,0.00010956,2]
[347866095,1736171435099,-500.0,0.00010957,2]
[347866096,1736171435108,-500.0,0.00010957,2]
[347866097,1736171435117,-500.0,0.00010957,2]
[347866098,1736171435127,-501.56,0.00010957,2]
[347866099,1736171435136,-500.0,0.00010957,2]
[347866100,1736171435145,-643.96918786,0.00010957,2]
[347866101,1736171435155,-500.0,0.00010957,2]
[347866102,1736171435165,-511.85,0.00010957,2]
[347866103,1736171435174,-1483.24,0.00010957,2]
[347866104,1736171435183,-500.0,0.00010957,2]
[347866105,1736171435193,-500.0,0.00010957,2]
[347866106,1736171435203,-500.0,0.00010957,2]
[347866107,1736171435213,-500.0,0.00010957,2]
[347866108,1736171435223,-500.0,0.00010957,2]
[347866109,1736171435233,-500.0,0.00010957,2]
[347866110,1736171435242,-500.0,0.00010957,2]
[347866111,1736171435251,-500.0,0.00010957,2]
[347866112,1736171435261,-500.0,0.00010957,2]
[347866113,1736171435271,-523.86616493,0.00010957,2]
[347866114,1736171435280,-500.0,0.00010957,2]
[347866115,1736171435291,-500.0,0.00010957,2]
[347866116,1736171435300,-500.0,0.00010957,2]
[347866117,1736171435309,-500.0,0.00010957,2]
[347866118,1736171435318,-500.0,0.00010957,2]
[347866119,1736171435327,-500.0,0.00010957,2]
[347866120,1736171435337,-500.0,0.00010957,2]
[347866121,1736171435346,-500.0,0.00010957,2]
[347866122,1736171435355,-500.0,0.00010957,2]
[347866123,1736171435364,-500.0,0.00010957,2]
[347866124,1736171435374,-500.0,0.00010957,2]
[347866125,1736171435383,-500.0,0.00010957,2]
[347866126,1736171435392,-566.8408678,0.00010957,2]
[347866127,1736171435401,-500.0,0.00010957,2]
[347866128,1736171435410,-500.0,0.00010957,2]
[347866129,1736171435421,-179.93308666,0.00010957,2]
[347866130,1736171435430,-500.0,0.00010957,2]
[347866131,1736171435439,-500.0,0.00010957,2]
[347866132,1736171435449,-500.0,0.00010957,2]
[347866133,1736171435458,-500.0,0.00010957,2]
[347866134,1736171435467,-500.0,0.00010957,2]
[347866135,1736171435477,-500.0,0.00010957,2]
[347866136,1736171435486,-500.0,0.00010957,2]
[347866137,1736171435495,-313.82000421,0.00010957,2]
[347866138,1736171435505,-907.7,0.00010957,2]
[347866139,1736171435514,-500.0,0.00010957,2]
[347866140,1736171435524,-500.0,0.00010957,2]
[347866141,1736171435535,-510.83011049,0.00010957,2]
[347866142,1736171435545,-500.0,0.00010957,2]
[347866143,1736171435554,-262.47919337,0.00010957,2]
[347866144,1736171435564,-500.0,0.00010957,2]
[347866145,1736171435574,-500.0,0.00010957,2]
[347866146,1736171435584,-500.0,0.00010957,2]
[347866147,1736171435593,-510.08911485,0.00010957,2]
[347866148,1736171435602,-500.0,0.00010957,2]
[347866149,1736171435615,-500.0,0.00010957,2]
[347866150,1736171435625,-959.284102,0.00010957,2]
[347866151,1736171435634,-500.0,0.00010957,2]
[347866152,1736171435644,-157.865101,0.00010957,2]
[347866153,1736171435654,-500.0,0.00010957,2]
[347866154,1736171435664,-500.0,0.00010957,2]
[347866155,1736171435673,-613.53682204,0.00010957,2]
[347866156,1736171435685,-1947.57,0.00010957,2]
[347866157,1736171435693,-1004.87682,0.00010957,2]
[347866158,1736171435703,-500.0,0.00010957,2]
[347866159,1736171435712,-500.0,0.00010957,2]
[347866160,1736171435722,-500.0,0.00010957,2]
[347866161,1736171435731,-500.0,0.00010957,2]
[347866162,1736171435741,-500.0,0.00010957,2]
[347866163,1736171435750,-1741.49,0.00010957,2]
[347866164,1736171435760,-1618.91,0.00010957,2]
[347866165,1736171435769,-500.0,0.00010957,2]
[347866166,1736171435778,-938.71,0.00010957,2]
[347866167,1736171435962,-500.0,0.00010957,2]
[347866168,1736171435972,-538.03,0.00010957,2]
[347866169,1736171435982,-500.0,0.00010957,2]
[347866170,1736171435992,-1468.21,0.00010957,2]
[347866171,1736171436002,-500.0,0.00010957,2]
[347866172,1736171436011,-500.0,0.00010957,2]
[347866173,1736171436021,-1820.18,0.00010957,2]
[347866174,1736171436030,-500.0,0.00010957,2]
[347866175,1736171436040,-500.0,0.00010957,2]
[347866176,1736171436050,-500.0,0.00010957,2]
[347866177,1736171436059,-500.0,0.00010957,2]
[347866178,1736171436068,-500.0,0.00010957,2]
[347866179,1736171436077,-500.0,0.00010957,2]
[347866180,1736171436087,-500.0,0.00010957,2]
[347866181,1736171436096,-500.0,0.00010957,2]
[347866182,1736171436105,-566.63,0.00010957,2]
[347866183,1736171436115,-500.0,0.00010957,2]
[347866184,1736171436124,-500.0,0.00010957,2]
[347866185,1736171436134,-500.0,0.00010957,2]
[347866186,1736171436143,-500.0,0.00010957,2]
[347866187,1736171436152,-500.0,0.00010957,2]
[347866188,1736171436161,-500.0,0.00010957,2]
[347866189,1736171436171,-401.58431493,0.00010957,2]
[347866190,1736171436180,-519.29,0.00010957,2]
[347866191,1736171436190,-512.26024432,0.00010957,2]
[347866192,1736171436199,-500.0,0.00010957,2]
[347866193,1736171436208,-500.0,0.00010957,2]
[347866194,1736171436218,-500.0,0.00010957,2]
[347866195,1736171436227,-624.27982349,0.00010957,2]
[347866196,1736171436236,-500.0,0.00010957,2]
[347866197,1736171436246,-500.0,0.00010957,2]
[347866198,1736171436255,-150.0,0.00010959,2]
[347866199,1736171436264,-151.59989468,0.00010969,2]
[347866200,1736171436274,-400.0,0.00010986,2]
[347866201,1736171436284,-1000.0,0.00010998,2]
[347866202,1736171436293,-500.0,0.00010998,2]
[347866203,1736171436303,-500.0,0.00010998,2]
[347866204,1736171436312,-1402.31,0.00010998,2]
[347866205,1736171436322,-941.76,0.00010998,2]
[347866206,1736171436331,-33800.0,0.00011,10]
[347866207,1736171436341,-2300.0,0.00011,4]
[347866208,1736171436350,-154.767345,0.00011013,2]
[347866209,1736171436360,-810.25,0.00011018,2]
[347866210,1736171436369,-809.95,0.00011018,2]
[347866211,1736171436378,-1690.91,0.00011018,2]
[347866212,1736171436388,-500.0,0.00011019,2]
[347866213,1736171436397,-500.0,0.00011019,2]
[347866214,1736171436407,-520.43,0.00011019,2]
[347866215,1736171436416,-555.8,0.00011019,2]
[347866216,1736171436426,-228.82996754,0.00011038,2]
[347866217,1736171436435,-500.0,0.0001104,2]
[347866218,1736171436445,-330.28455027,0.00011043,2]
[347866219,1736171436454,-500.0,0.00011043,2]
[347866220,1736171436464,-500.0,0.00011043,2]
[347866221,1736171436473,-500.0,0.00011043,2]
[347866222,1736171436483,-500.0,0.00011043,2]
[347866223,1736171436492,-1267.13,0.00011043,2]
[347866224,1736171436502,-2358.59,0.00011043,2]
[347866225,1736171436511,-1174.46,0.00011043,2]
[347866226,1736171436521,-524.98,0.00011043,2]
[347866227,1736171436530,-151.59989468,0.00011068,2]
[347866228,1736171436540,-1000.0,0.00011083,2]
[347866229,1736171436551,-3500.0,0.000111,4]
[347866230,1736171436560,-1267.0,0.00011114,2]
[347866231,1736171436572,-2014.0,0.00011114,2]
[347866232,1736171436582,-150.0,0.00011114,2]
[347866233,1736171436592,-566.0,0.00011114,2]
[347866234,1736171436602,-634.0,0.00011114,2]
[347866235,1736171436615,-1860.0,0.00011114,2]
[347866236,1736171436626,-1258.0,0.00011114,2]
[347866237,1736171436635,-3776.0,0.00011114,2]
[347866238,1736171436644,-918.0,0.00011114,2]
[347866239,1736171436654,-819.0,0.00011114,2]
[347866240,1736171436664,-537.0,0.00011114,2]
[347866241,1736171436673,-3975.0,0.00011114,2]
[347866242,1736171436683,-1173.0,0.00011114,2]
[347866243,1736171436693,-3894.0,0.00011114,2]
[347866244,1736171436703,-150.0,0.00011114,2]
[347866245,1736171436712,-918.8,0.00011117,2]
[347866246,1736171436721,-880.52,0.00011117,2]
[347866247,1736171436731,-742.56,0.00011117,2]
[347866248,1736171436740,-1979.58,0.00011117,2]
[347866249,1736171436749,-1048.97,0.00011117,2]
[347866250,1736171436758,-2833.09,0.00011117,2]
[347866251,1736171436769,-2833.09,0.00011117,2]
[347866252,1736171436779,-1010.97,0.00011118,2]
[347866253,1736171436789,-1058.17,0.00011118,2]
[347866254,1736171436799,-511.19,0.00011118,2]
[347866255,1736171436808,-500.0,0.00011118,2]
[347866256,1736171436817,-976.16,0.00011118,2]
[347866257,1736171436827,-500.0,0.00011118,2]
[347866258,1736171436836,-500.0,0.00011118,2]
[347866259,1736171436846,-500.0,0.00011118,2]
[347866260,1736171436855,-530.78,0.00011118,2]
[347866261,1736171436864,-642.28,0.00011119,2]
[347866262,1736171436874,-500.0,0.00011119,2]
[347866263,1736171436883,-500.0,0.00011119,2]
[347866264,1736171436892,-610.25,0.00011119,2]
[347866265,1736171436901,-500.0,0.00011119,2]
[347866266,1736171436914,-500.0,0.00011119,2]
[347866267,1736171436925,-500.0,0.00011119,2]
[347866268,1736171436936,-1099.24,0.00011119,2]
[347866269,1736171436945,-989.72,0.00011119,2]
[347866270,1736171436954,-1681.61,0.00011119,2]
[347866271,1736171436964,-4573.22,0.00011119,2]
[347866272,1736171436973,-500.0,0.00011119,2]
[347866273,1736171436983,-924.08,0.00011119,2]
[347866274,1736171436992,-500.0,0.00011119,2]
[347866275,1736171437002,-500.0,0.00011119,2]
[347866276,1736171437011,-2499.25,0.00011119,2]
[347866277,1736171437020,-2289.15,0.00011119,2]
[347866278,1736171437029,-1073.59,0.00011119,2]
[347866279,1736171437040,-500.0,0.00011119,2]
[347866280,1736171437049,-1548.06,0.00011119,2]
[347866281,1736171437059,-568.15,0.00011119,2]
[347866282,1736171437068,-1895.64,0.00011119,2]
[347866283,1736171437078,-889.35,0.00011119,2]
[347866284,1736171437087,-990.93,0.00011119,2]
[347866285,1736171437096,-500.0,0.00011119,2]
[347866286,1736171437105,-602.58,0.00011119,2]
[347866287,1736171437114,-550.902,0.0001112,2]
[347866288,1736171437124,-228.82996754,0.00011141,2]
[347866289,1736171437133,-200.0,0.00011167,2]
[347866290,1736171437143,-456.8230118,0.00011167,2]
[347866291,1736171437152,-151.59989468,0.00011168,2]
[347866292,1736171437162,-200.0,0.00011169,2]
[347866293,1736171437172,-200.0,0.00011171,2]
[347866294,1736171437181,-456.8230118,0.00011176,2]
[347866295,1736171437191,-456.8230118,0.00011176,2]
[347866296,1736171437200,-200.0,0.00011181,2]
[347866297,1736171437210,-200.0,0.00011183,2]
[347866298,1736171437219,-456.8230118,0.00011183,2]
[347866299,1736171437229,-456.8230118,0.00011189,2]
[347866300,1736171437239,-500.0,0.0001119,2]
[347866301,1736171437248,-456.8230118,0.00011198,2]
[347866302,1736171437257,-4700.0,0.000112,4]
[347866303,1736171437267,-255.0,0.00011205,2]
[347866304,1736171437276,-500.0,0.00011229,2]
[347866305,1736171437286,-500.0,0.00011229,2]
[347866306,1736171437295,-434.77,0.0001123,2]
[347866307,1736171437304,-500.0,0.0001123,2]
[347866308,1736171437314,-500.0,0.0001123,2]
[347866309,1736171437323,-506.15802987,0.0001123,2]
[347866310,1736171437333,-500.0,0.0001123,2]
[347866311,1736171437343,-713.64,0.0001123,2]
[347866312,1736171437352,-2093.42,0.0001123,2]
[347866313,1736171437361,-500.0,0.0001123,2]
[347866314,1736171437371,-500.0,0.0001123,2]
[347866315,1736171437380,-1084.23,0.0001123,2]
[347866316,1736171437390,-500.0,0.0001123,2]
[347866317,1736171437399,-1433.13,0.0001123,2]
[347866318,1736171437409,-500.0,0.0001123,2]
[347866319,1736171437418,-500.0,0.0001123,2]
[347866320,1736171437429,-750.98,0.0001123,2]
[347866321,1736171437439,-606.68,0.0001123,2]
[347866322,1736171437449,-500.0,0.0001123,2]
[347866323,1736171437459,-1706.94,0.0001123,2]
[347866324,1736171437469,-500.0,0.00011231,2]
[347866325,1736171437479,-500.0,0.00011231,2]
[347866326,1736171437488,-500.0,0.00011231,2]
[347866327,1736171437498,-501.56,0.00011231,2]
[347866328,1736171437507,-1483.24,0.00011231,2]
[347866329,1736171437517,-513.92281806,0.00011231,2]
[347866330,1736171437527,-513.25478109,0.00011231,2]
[347866331,1736171437537,-500.0,0.00011231,2]
[347866332,1736171437547,-500.0,0.00011231,2]
[347866333,1736171437556,-509.88951498,0.00011231,2]
[347866334,1736171437566,-500.0,0.00011231,2]
[347866335,1736171437576,-500.0,0.00011231,2]
[347866336,1736171437586,-500.0,0.00011231,2]
[347866337,1736171437595,-500.0,0.00011231,2]
[347866338,1736171437606,-907.7,0.00011231,2]
[347866339,1736171437621,-500.0,0.00011231,2]
[347866340,1736171437631,-500.0,0.00011231,2]
[347866341,1736171437641,-500.0,0.00011231,2]
[347866342,1736171437651,-500.0,0.00011231,2]
[347866343,1736171437662,-500.0,0.00011231,2]
[347866344,1736171437672,-500.0,0.00011231,2]
[347866345,1736171437682,-500.0,0.00011231,2]
[347866346,1736171437692,-959.284102,0.00011231,2]
[347866347,1736171437702,-500.0,0.00011231,2]